[Event "Titled Tuesday Blitz August 15 Late 2023"]
[White "Bongo Akanga Ndjila, Barthelemy"]
[Black "only_strong_moves"]
[WhiteFideId "10609431"]
[WhiteElo "2037"]
[BlackElo "2507"]
[Result "0-1"]
[Round "1"]
[TimeControl "180+1"]
[Date "2023.08.15"]
[WhiteClock "0:00:00"]
[BlackClock "0:00:57"]
[Board "179"]

1. d4 {[%clk 0:02:58]}  d5 {[%clk 0:03:00]} 2. c4 {[%clk 0:02:58]}  Nf6 {[%clk 0:03:01]} 3. cxd5 {[%clk 0:02:56]}  Nxd5 {[%clk 0:03:02]} 4. e4 {[%clk 0:02:56]}  Nb6 {[%clk 0:02:59]} 5. Nc3 {[%clk 0:02:56]}  g6 {[%clk 0:02:58]} 6. a4 {[%clk 0:02:52]}  Bg7 {[%clk 0:02:55]} 7. a5 {[%clk 0:02:51]}  N6d7 {[%clk 0:02:55]} 8. Nf3 {[%clk 0:02:49]}  O-O {[%clk 0:02:54]} 9. Bc4 {[%clk 0:02:35]}  c5 {[%clk 0:02:37]} 10. d5 {[%clk 0:02:33]}  a6 {[%clk 0:02:23]} 11. Bf4 {[%clk 0:02:27]}  b5 {[%clk 0:02:15]} 12. Bb3 {[%clk 0:02:17]}  c4 {[%clk 0:02:14]} 13. Bc2 {[%clk 0:02:17]}  Nc5 {[%clk 0:02:06]} 14. O-O {[%clk 0:02:06]}  Nb7 {[%clk 0:01:58]} 15. e5 {[%clk 0:01:46]}  Nxa5 {[%clk 0:01:56]} 16. d6 {[%clk 0:01:44]}  exd6 {[%clk 0:01:56]} 17. exd6 {[%clk 0:01:44]}  Bb7 {[%clk 0:01:56]} 18. Be4 {[%clk 0:01:41]}  Bxe4 {[%clk 0:01:54]} 19. Nxe4 {[%clk 0:01:41]}  Nd7 {[%clk 0:01:47]} 20. Qc2 {[%clk 0:01:17]}  Nb3 {[%clk 0:01:47]} 21. Rad1 {[%clk 0:01:13]}  Qb6 {[%clk 0:01:42]} 22. Neg5 {[%clk 0:01:01]}  a5 {[%clk 0:01:36]} 23. h4 {[%clk 0:00:59]}  a4 {[%clk 0:01:33]} 24. h5 {[%clk 0:00:59]}  a3 {[%clk 0:01:31]} 25. bxa3 {[%clk 0:00:56]}  Rxa3 {[%clk 0:01:32]} 26. hxg6 {[%clk 0:00:52]}  hxg6 {[%clk 0:01:33]} 27. Rfe1 {[%clk 0:00:43]}  Nd4 {[%clk 0:01:30]} 28. Nxd4 {[%clk 0:00:39]}  Bxd4 {[%clk 0:01:31]} 29. Nxf7 {[%clk 0:00:35]}  Bxf2+ {[%clk 0:01:11]} 30. Qxf2 {[%clk 0:00:34]}  Qxf2+ {[%clk 0:01:12]} 31. Kxf2 {[%clk 0:00:34]}  Rxf7 {[%clk 0:01:13]} 32. g3 {[%clk 0:00:31]}  g5 {[%clk 0:01:13]} 33. Re7 {[%clk 0:00:28]}  gxf4 {[%clk 0:01:10]} 34. Rxf7 {[%clk 0:00:18]}  Kxf7 {[%clk 0:01:10]} 35. gxf4 {[%clk 0:00:17]}  b4 {[%clk 0:01:11]} 36. Re1 {[%clk 0:00:15]}  c3 {[%clk 0:01:11]} 37. Re7+ {[%clk 0:00:16]}  Kf6 {[%clk 0:01:11]} 38. Rxd7 {[%clk 0:00:17]}  c2 {[%clk 0:01:10]} 39. Rc7 {[%clk 0:00:18]}  Ra2 {[%clk 0:01:01]} 40. Kf3 {[%clk 0:00:16]}  Ra3+ {[%clk 0:00:57]} 41. Ke4 {[%clk 0:00:15]}  Rc3 {[%clk 0:00:55]} 42. d7 {[%clk 0:00:14]}  Ke7 {[%clk 0:00:56]} 43. d8=Q+ {[%clk 0:00:07]}  Kxd8 {[%clk 0:00:55]} 44. Rxc3 {[%clk 0:00:06]}  bxc3 {[%clk 0:00:56]} 45. Kd3 {[%clk 0:00:00]}  c1=Q {[%clk 0:00:57]} 0-1


[Site "https://www.chess.com"]

[Event "Titled Tuesday Blitz August 15 Late 2023"]
[White "FromTexas54"]
[Black "Burke, Paul"]
[BlackFideId "2605767"]
[WhiteElo "2506"]
[BlackElo "1846"]
[Result "1-0"]
[Round "1"]
[TimeControl "180+1"]
[Date "2023.08.15"]
[WhiteClock "0:00:08"]
[BlackClock "0:00:00"]
[Board "180"]

1. Nf3 {[%clk 0:02:57]}  a6 {[%clk 0:02:59]} 2. g3 {[%clk 0:02:58]}  d6 {[%clk 0:02:59]} 3. Bg2 {[%clk 0:02:59]}  g6 {[%clk 0:02:59]} 4. O-O {[%clk 0:03:00]}  h6 {[%clk 0:03:00]} 5. d4 {[%clk 0:03:00]}  Bg7 {[%clk 0:03:00]} 6. c4 {[%clk 0:03:01]}  Nd7 {[%clk 0:03:00]} 7. Nc3 {[%clk 0:03:02]}  e5 {[%clk 0:02:59]} 8. e4 {[%clk 0:03:03]}  Ne7 {[%clk 0:02:59]} 9. Be3 {[%clk 0:03:02]}  O-O {[%clk 0:02:59]} 10. h3 {[%clk 0:03:01]}  f5 {[%clk 0:02:58]} 11. exf5 {[%clk 0:03:01]}  gxf5 {[%clk 0:02:58]} 12. Qd2 {[%clk 0:02:58]}  Kh7 {[%clk 0:02:43]} 13. Rad1 {[%clk 0:02:56]}  e4 {[%clk 0:02:38]} 14. Nh4 {[%clk 0:02:51]}  Nf6 {[%clk 0:02:37]} 15. d5 {[%clk 0:02:43]}  Bd7 {[%clk 0:02:28]} 16. Ne2 {[%clk 0:02:43]}  Qe8 {[%clk 0:02:25]} 17. Nd4 {[%clk 0:02:42]}  Nh5 {[%clk 0:02:03]} 18. Rfe1 {[%clk 0:02:38]}  Ng6 {[%clk 0:01:55]} 19. Nxg6 {[%clk 0:02:37]}  Qxg6 {[%clk 0:01:54]} 20. Ne2 {[%clk 0:02:34]}  Rae8 {[%clk 0:01:48]} 21. b4 {[%clk 0:02:34]}  f4 {[%clk 0:01:43]} 22. Nxf4 {[%clk 0:02:31]}  Nxf4 {[%clk 0:01:40]} 23. Bxf4 {[%clk 0:02:32]}  Be5 {[%clk 0:01:22]} 24. Bxe4 {[%clk 0:02:30]}  Bf5 {[%clk 0:01:19]} 25. Bxf5 {[%clk 0:02:30]}  Qxf5 {[%clk 0:01:20]} 26. Bxe5 {[%clk 0:02:29]}  dxe5 {[%clk 0:01:13]} 27. h4 {[%clk 0:02:27]}  e4 {[%clk 0:01:06]} 28. Re3 {[%clk 0:02:26]}  Rg8 {[%clk 0:00:57]} 29. Rde1 {[%clk 0:02:25]}  Rg4 {[%clk 0:00:55]} 30. Qe2 {[%clk 0:02:10]}  Qg6 {[%clk 0:00:53]} 31. Kh2 {[%clk 0:02:08]}  Qf5 {[%clk 0:00:43]} 32. Qf1 {[%clk 0:02:01]}  Qe5 {[%clk 0:00:38]} 33. f4 {[%clk 0:01:48]}  Qh5 {[%clk 0:00:35]} 34. Qh3 {[%clk 0:01:42]}  Qg6 {[%clk 0:00:31]} 35. Qg2 {[%clk 0:01:38]}  h5 {[%clk 0:00:31]} 36. Rxe4 {[%clk 0:01:37]}  Rxe4 {[%clk 0:00:29]} 37. Qxe4 {[%clk 0:01:37]}  Rxg3 {[%clk 0:00:28]} 38. Qxg6+ {[%clk 0:01:36]}  Rxg6 {[%clk 0:00:28]} 39. Re7+ {[%clk 0:01:36]}  Kh6 {[%clk 0:00:28]} 40. Rxc7 {[%clk 0:01:36]}  Rg4 {[%clk 0:00:28]} 41. Rxb7 {[%clk 0:01:35]}  Rxf4 {[%clk 0:00:26]} 42. d6 {[%clk 0:01:35]}  Rxh4+ {[%clk 0:00:22]} 43. Kg3 {[%clk 0:01:35]}  Rxc4 {[%clk 0:00:21]} 44. d7 {[%clk 0:01:33]}  Rd4 {[%clk 0:00:22]} 45. a4 {[%clk 0:01:30]}  Kg5 {[%clk 0:00:21]} 46. Kf2 {[%clk 0:01:24]}  Kg4 {[%clk 0:00:20]} 47. Ke3 {[%clk 0:01:23]}  Rd1 {[%clk 0:00:19]} 48. Rb6 {[%clk 0:00:28]}  Rxd7 {[%clk 0:00:16]} 49. Rxa6 {[%clk 0:00:28]}  h4 {[%clk 0:00:16]} 50. Rg6+ {[%clk 0:00:27]}  Kh5 {[%clk 0:00:15]} 51. Rg8 {[%clk 0:00:25]}  Re7+ {[%clk 0:00:11]} 52. Kd4 {[%clk 0:00:25]}  Rf7 {[%clk 0:00:10]} 53. a5 {[%clk 0:00:23]}  h3 {[%clk 0:00:10]} 54. a6 {[%clk 0:00:22]}  Rf4+ {[%clk 0:00:10]} 55. Kc5 {[%clk 0:00:21]}  Rf5+ {[%clk 0:00:09]} 56. Kb6 {[%clk 0:00:19]}  Rf6+ {[%clk 0:00:09]} 57. Ka5 {[%clk 0:00:17]}  Rf7 {[%clk 0:00:07]} 58. Rh8+ {[%clk 0:00:15]}  Kg4 {[%clk 0:00:07]} 59. b5 {[%clk 0:00:15]}  Kg3 {[%clk 0:00:07]} 60. b6 {[%clk 0:00:14]}  Rf5+ {[%clk 0:00:07]} 61. Kb4 {[%clk 0:00:14]}  Rf4+ {[%clk 0:00:07]} 62. Kc5 {[%clk 0:00:13]}  Rf5+ {[%clk 0:00:07]} 63. Kd4 {[%clk 0:00:13]}  Rf4+ {[%clk 0:00:07]} 64. Ke5 {[%clk 0:00:13]}  Rb4 {[%clk 0:00:05]} 65. a7 {[%clk 0:00:11]}  Rxb6 {[%clk 0:00:05]} 66. a8=Q {[%clk 0:00:11]}  Rb5+ {[%clk 0:00:05]} 67. Kd4 {[%clk 0:00:11]}  Rb4+ {[%clk 0:00:03]} 68. Kc3 {[%clk 0:00:10]}  Rg4 {[%clk 0:00:00]} 69. Qh1 {[%clk 0:00:08]} 1-0


[Site "https://www.chess.com"]

[Event "Titled Tuesday Blitz August 15 Late 2023"]
[White "cthake"]
[Black "Martin Barcelo, Carles"]
[BlackFideId "24561444"]
[WhiteElo "1819"]
[BlackElo "2505"]
[Result "1/2-1/2"]
[Round "1"]
[TimeControl "180+1"]
[Date "2023.08.15"]
[WhiteClock "0:00:25"]
[BlackClock "0:00:05"]
[Board "181"]

1. c4 {[%clk 0:02:58]}  b6 {[%clk 0:02:55]} 2. Nc3 {[%clk 0:02:55]}  Bb7 {[%clk 0:02:53]} 3. d4 {[%clk 0:02:52]}  g6 {[%clk 0:02:50]} 4. e4 {[%clk 0:02:44]}  Bg7 {[%clk 0:02:49]} 5. Be3 {[%clk 0:02:42]}  Nc6 {[%clk 0:02:42]} 6. f3 {[%clk 0:02:41]}  e5 {[%clk 0:02:39]} 7. d5 {[%clk 0:02:39]}  Nd4 {[%clk 0:02:39]} 8. Nge2 {[%clk 0:02:38]}  Nxe2 {[%clk 0:02:37]} 9. Bxe2 {[%clk 0:02:37]}  Bh6 {[%clk 0:02:21]} 10. Bxh6 {[%clk 0:02:34]}  Nxh6 {[%clk 0:02:22]} 11. Qd2 {[%clk 0:02:33]}  Qh4+ {[%clk 0:02:03]} 12. g3 {[%clk 0:02:09]}  Qh3 {[%clk 0:02:03]} 13. Bf1 {[%clk 0:02:08]}  Qh5 {[%clk 0:02:02]} 14. Bg2 {[%clk 0:02:06]}  a6 {[%clk 0:01:56]} 15. O-O {[%clk 0:02:05]}  O-O {[%clk 0:01:50]} 16. b4 {[%clk 0:02:00]}  Kg7 {[%clk 0:01:46]} 17. c5 {[%clk 0:01:49]}  d6 {[%clk 0:01:39]} 18. cxd6 {[%clk 0:01:23]}  cxd6 {[%clk 0:01:40]} 19. Rac1 {[%clk 0:01:21]}  Rac8 {[%clk 0:01:20]} 20. Na4 {[%clk 0:01:19]}  b5 {[%clk 0:01:20]} 21. Nb2 {[%clk 0:01:14]}  Ng8 {[%clk 0:01:17]} 22. f4 {[%clk 0:01:07]}  Qh6 {[%clk 0:01:05]} 23. Nd3 {[%clk 0:01:01]}  Nf6 {[%clk 0:00:53]} 24. h3 {[%clk 0:00:51]}  Nd7 {[%clk 0:00:51]} 25. Rxc8 {[%clk 0:00:48]}  Rxc8 {[%clk 0:00:50]} 26. Rc1 {[%clk 0:00:48]}  exf4 {[%clk 0:00:47]} 27. Rxc8 {[%clk 0:00:43]}  Bxc8 {[%clk 0:00:48]} 28. Qxf4 {[%clk 0:00:38]}  Qxf4 {[%clk 0:00:44]} 29. gxf4 {[%clk 0:00:39]}  f6 {[%clk 0:00:35]} 30. Kf2 {[%clk 0:00:37]}  h6 {[%clk 0:00:33]} 31. Ke3 {[%clk 0:00:37]}  g5 {[%clk 0:00:33]} 32. fxg5 {[%clk 0:00:31]}  hxg5 {[%clk 0:00:34]} 33. Bf3 {[%clk 0:00:28]}  Ne5 {[%clk 0:00:31]} 34. Nxe5 {[%clk 0:00:27]}  fxe5 {[%clk 0:00:29]} 35. Bg4 {[%clk 0:00:27]}  Bb7 {[%clk 0:00:23]} 36. Kd3 {[%clk 0:00:26]}  Kf6 {[%clk 0:00:23]} 37. a3 {[%clk 0:00:26]}  Ke7 {[%clk 0:00:23]} 38. Ke3 {[%clk 0:00:26]}  Kd8 {[%clk 0:00:22]} 39. Kf3 {[%clk 0:00:26]}  Ke7 {[%clk 0:00:18]} 40. Kg3 {[%clk 0:00:26]}  Kf6 {[%clk 0:00:16]} 41. Kf3 {[%clk 0:00:26]}  Kg6 {[%clk 0:00:16]} 42. Kg3 {[%clk 0:00:26]}  Kg7 {[%clk 0:00:16]} 43. Kf3 {[%clk 0:00:26]}  Kf7 {[%clk 0:00:17]} 44. Kg3 {[%clk 0:00:26]}  Ke7 {[%clk 0:00:16]} 45. Kf3 {[%clk 0:00:26]}  Kf6 {[%clk 0:00:08]} 46. Kg3 {[%clk 0:00:26]}  Kg6 {[%clk 0:00:08]} 47. Kf3 {[%clk 0:00:26]}  Kh6 {[%clk 0:00:08]} 48. Kg3 {[%clk 0:00:27]}  Kh7 {[%clk 0:00:08]} 49. Kf3 {[%clk 0:00:27]}  Kg8 {[%clk 0:00:08]} 50. Bf5 {[%clk 0:00:26]}  Kg7 {[%clk 0:00:08]} 51. Kg4 {[%clk 0:00:26]}  Kf6 {[%clk 0:00:07]} 52. Bd7 {[%clk 0:00:25]}  Kg6 {[%clk 0:00:05]} 53. Bf5+ {[%clk 0:00:25]}  Kf6 {[%clk 0:00:04]} 54. Bd7 {[%clk 0:00:25]}  Kg6 {[%clk 0:00:04]} 55. Bf5+ {[%clk 0:00:25]}  Kf6 {[%clk 0:00:05]} 1/2-1/2


[Site "https://www.chess.com"]

[Event "Titled Tuesday Blitz August 15 Late 2023"]
[White "Willy, Stephen"]
[Black "Delorme, Laurie"]
[WhiteFideId "30981468"]
[BlackFideId "630829"]
[WhiteElo "2505"]
[BlackElo "1797"]
[Result "0-1"]
[Round "1"]
[TimeControl "180+1"]
[Date "2023.08.15"]
[WhiteClock "0:00:06"]
[BlackClock "0:00:37"]
[Board "182"]

1. e4 {[%clk 0:02:56]}  c5 {[%clk 0:02:59]} 2. c3 {[%clk 0:02:53]}  d5 {[%clk 0:02:57]} 3. exd5 {[%clk 0:02:48]}  Qxd5 {[%clk 0:02:58]} 4. d4 {[%clk 0:02:47]}  Nc6 {[%clk 0:02:56]} 5. Nf3 {[%clk 0:02:43]}  cxd4 {[%clk 0:02:53]} 6. cxd4 {[%clk 0:02:24]}  e6 {[%clk 0:02:40]} 7. Nc3 {[%clk 0:02:23]}  Qd6 {[%clk 0:02:40]} 8. Nb5 {[%clk 0:02:14]}  Qb8 {[%clk 0:02:25]} 9. g3 {[%clk 0:02:11]}  Bd6 {[%clk 0:02:17]} 10. Bg2 {[%clk 0:02:07]}  Nf6 {[%clk 0:02:15]} 11. O-O {[%clk 0:02:00]}  O-O {[%clk 0:02:15]} 12. Nxd6 {[%clk 0:01:57]}  Qxd6 {[%clk 0:02:15]} 13. Bf4 {[%clk 0:01:41]}  Qb4 {[%clk 0:02:07]} 14. Qe2 {[%clk 0:01:37]}  Nxd4 {[%clk 0:01:53]} 15. Nxd4 {[%clk 0:01:17]}  Qxd4 {[%clk 0:01:54]} 16. Rfd1 {[%clk 0:01:15]}  Qb6 {[%clk 0:01:46]} 17. Rac1 {[%clk 0:01:04]}  Bd7 {[%clk 0:01:35]} 18. Be5 {[%clk 0:00:55]}  Nd5 {[%clk 0:01:28]} 19. Qg4 {[%clk 0:00:27]}  f6 {[%clk 0:01:21]} 20. Rxd5 {[%clk 0:00:22]}  exd5 {[%clk 0:01:19]} 21. Qxd7 {[%clk 0:00:16]}  fxe5 {[%clk 0:01:17]} 22. Bxd5+ {[%clk 0:00:16]}  Kh8 {[%clk 0:01:16]} 23. Rc2 {[%clk 0:00:16]}  Rad8 {[%clk 0:01:13]} 24. Qxb7 {[%clk 0:00:14]}  Qd4 {[%clk 0:01:11]} 25. Be4 {[%clk 0:00:13]}  Rd7 {[%clk 0:00:42]} 26. Qc6 {[%clk 0:00:12]}  Rdf7 {[%clk 0:00:39]} 27. h3 {[%clk 0:00:08]}  Rxf2 {[%clk 0:00:38]} 28. Rc4 {[%clk 0:00:07]}  Rf1+ {[%clk 0:00:37]} 29. Kg2 {[%clk 0:00:06]}  Qg1# {[%clk 0:00:37]} 0-1


[Site "https://www.chess.com"]

[Event "Titled Tuesday Blitz August 15 Late 2023"]
[White "Fedoseev, Vladimir"]
[Black "Caspi, Israel"]
[WhiteFideId "24130737"]
[BlackFideId "2807394"]
[WhiteElo "3118"]
[BlackElo "2613"]
[Result "1-0"]
[Round "2"]
[TimeControl "180+1"]
[Date "2023.08.15"]
[WhiteClock "0:01:53"]
[BlackClock "0:01:00"]
[Board "5"]

1. b3 {[%clk 0:03:00]}  e5 {[%clk 0:02:59]} 2. Bb2 {[%clk 0:03:00]}  Nc6 {[%clk 0:02:59]} 3. e3 {[%clk 0:03:00]}  d5 {[%clk 0:03:00]} 4. Bb5 {[%clk 0:03:01]}  Bd6 {[%clk 0:03:00]} 5. Nf3 {[%clk 0:03:00]}  Qe7 {[%clk 0:03:00]} 6. c4 {[%clk 0:02:59]}  dxc4 {[%clk 0:02:44]} 7. bxc4 {[%clk 0:02:50]}  Nf6 {[%clk 0:02:43]} 8. c5 {[%clk 0:02:49]}  Bxc5 {[%clk 0:02:44]} 9. Nxe5 {[%clk 0:02:50]}  O-O {[%clk 0:02:43]} 10. Bxc6 {[%clk 0:02:45]}  bxc6 {[%clk 0:02:43]} 11. O-O {[%clk 0:02:45]}  Bd6 {[%clk 0:02:33]} 12. Nxc6 {[%clk 0:02:34]}  Qe4 {[%clk 0:02:33]} 13. Bxf6 {[%clk 0:02:22]}  Qxc6 {[%clk 0:02:31]} 14. Bd4 {[%clk 0:02:21]}  Bb7 {[%clk 0:02:13]} 15. Qg4 {[%clk 0:02:20]}  f6 {[%clk 0:01:59]} 16. Nc3 {[%clk 0:02:18]}  Rae8 {[%clk 0:01:57]} 17. Rac1 {[%clk 0:02:16]}  Ba3 {[%clk 0:01:52]} 18. Rb1 {[%clk 0:02:13]}  Ba8 {[%clk 0:01:52]} 19. Nb5 {[%clk 0:02:06]}  Re4 {[%clk 0:01:48]} 20. Qg3 {[%clk 0:02:04]}  Be7 {[%clk 0:01:27]} 21. f3 {[%clk 0:02:04]}  Re6 {[%clk 0:01:21]} 22. Qxc7 {[%clk 0:02:01]}  a6 {[%clk 0:01:15]} 23. Rfc1 {[%clk 0:02:00]}  axb5 {[%clk 0:01:10]} 24. Rxc6 {[%clk 0:01:59]}  Bxc6 {[%clk 0:01:11]} 25. Rc1 {[%clk 0:01:57]}  Be8 {[%clk 0:01:07]} 26. Bc5 {[%clk 0:01:55]}  Rf7 {[%clk 0:01:06]} 27. Qc8 {[%clk 0:01:54]}  Bxc5 {[%clk 0:01:00]} 28. Qxe6 {[%clk 0:01:53]} 1-0


[Site "https://www.chess.com"]

[Event "Titled Tuesday Blitz August 15 Late 2023"]
[White "Altman, Joshua"]
[Black "Aronian, Levon"]
[WhiteFideId "426210"]
[BlackFideId "13300474"]
[WhiteElo "2603"]
[BlackElo "3075"]
[Result "0-1"]
[Round "2"]
[TimeControl "180+1"]
[Date "2023.08.15"]
[WhiteClock "0:00:11"]
[BlackClock "0:00:05"]
[Board "7"]

1. d4 {[%clk 0:03:00]}  Nf6 {[%clk 0:03:00]} 2. c4 {[%clk 0:03:01]}  g6 {[%clk 0:03:00]} 3. Nc3 {[%clk 0:03:01]}  Bg7 {[%clk 0:03:01]} 4. Nf3 {[%clk 0:03:01]}  O-O {[%clk 0:03:01]} 5. Bg5 {[%clk 0:03:01]}  c5 {[%clk 0:03:01]} 6. e3 {[%clk 0:03:01]}  cxd4 {[%clk 0:03:01]} 7. Nxd4 {[%clk 0:03:01]}  Qa5 {[%clk 0:02:59]} 8. Bxf6 {[%clk 0:03:02]}  Bxf6 {[%clk 0:02:58]} 9. Qd2 {[%clk 0:03:02]}  Nc6 {[%clk 0:02:51]} 10. Nd5 {[%clk 0:03:02]}  Qxd2+ {[%clk 0:02:38]} 11. Kxd2 {[%clk 0:03:03]}  Bxd4 {[%clk 0:02:38]} 12. exd4 {[%clk 0:03:03]}  e6 {[%clk 0:02:38]} 13. Nc7 {[%clk 0:02:57]}  Rb8 {[%clk 0:02:38]} 14. d5 {[%clk 0:02:56]}  Ne7 {[%clk 0:02:35]} 15. Bd3 {[%clk 0:02:53]}  a6 {[%clk 0:02:31]} 16. b4 {[%clk 0:02:35]}  b6 {[%clk 0:02:29]} 17. d6 {[%clk 0:02:25]}  Nc6 {[%clk 0:02:28]} 18. a3 {[%clk 0:02:22]}  Bb7 {[%clk 0:02:25]} 19. c5 {[%clk 0:02:22]}  bxc5 {[%clk 0:01:58]} 20. bxc5 {[%clk 0:02:23]}  Nd4 {[%clk 0:01:59]} 21. Kc3 {[%clk 0:02:15]}  e5 {[%clk 0:01:58]} 22. f3 {[%clk 0:02:07]}  Rfc8 {[%clk 0:01:49]} 23. Rab1 {[%clk 0:02:06]}  Ne6 {[%clk 0:01:47]} 24. Nxe6 {[%clk 0:01:49]}  fxe6 {[%clk 0:01:47]} 25. Kd2 {[%clk 0:01:50]}  Kf7 {[%clk 0:01:17]} 26. Rhc1 {[%clk 0:01:45]}  Kf6 {[%clk 0:01:13]} 27. Rb6 {[%clk 0:01:45]}  Bc6 {[%clk 0:01:03]} 28. Bxa6 {[%clk 0:01:36]}  Rf8 {[%clk 0:01:02]} 29. Rcb1 {[%clk 0:01:33]}  Ra8 {[%clk 0:01:02]} 30. R1b3 {[%clk 0:01:29]}  e4 {[%clk 0:00:51]} 31. Bb7 {[%clk 0:01:27]}  Bxb7 {[%clk 0:00:48]} 32. Rxb7 {[%clk 0:01:28]}  Ra5 {[%clk 0:00:46]} 33. Rc3 {[%clk 0:01:22]}  Rd8 {[%clk 0:00:36]} 34. fxe4 {[%clk 0:01:21]}  Ke5 {[%clk 0:00:37]} 35. Ke3 {[%clk 0:01:20]}  g5 {[%clk 0:00:34]} 36. g4 {[%clk 0:01:19]}  Ra4 {[%clk 0:00:29]} 37. Rb4 {[%clk 0:01:16]}  Rda8 {[%clk 0:00:28]} 38. Rxa4 {[%clk 0:01:14]}  Rxa4 {[%clk 0:00:29]} 39. c6 {[%clk 0:01:14]}  Rxe4+ {[%clk 0:00:20]} 40. Kf3 {[%clk 0:01:13]}  Rf4+ {[%clk 0:00:20]} 41. Kg3 {[%clk 0:01:06]}  dxc6 {[%clk 0:00:20]} 42. Rd3 {[%clk 0:01:01]}  Rf8 {[%clk 0:00:19]} 43. d7 {[%clk 0:00:58]}  Rd8 {[%clk 0:00:18]} 44. a4 {[%clk 0:00:58]}  c5 {[%clk 0:00:17]} 45. a5 {[%clk 0:00:36]}  c4 {[%clk 0:00:17]} 46. Rd1 {[%clk 0:00:29]}  c3 {[%clk 0:00:15]} 47. a6 {[%clk 0:00:29]}  c2 {[%clk 0:00:14]} 48. Rc1 {[%clk 0:00:28]}  Rxd7 {[%clk 0:00:15]} 49. Rxc2 {[%clk 0:00:29]}  Rd3+ {[%clk 0:00:15]} 50. Kg2 {[%clk 0:00:29]}  Ra3 {[%clk 0:00:16]} 51. Rc6 {[%clk 0:00:28]}  Kd5 {[%clk 0:00:14]} 52. Rb6 {[%clk 0:00:28]}  e5 {[%clk 0:00:14]} 53. Rb5+ {[%clk 0:00:23]}  Kd4 {[%clk 0:00:14]} 54. Rb4+ {[%clk 0:00:21]}  Ke3 {[%clk 0:00:14]} 55. Rb6 {[%clk 0:00:20]}  Kf4 {[%clk 0:00:13]} 56. h3 {[%clk 0:00:19]}  Ra2+ {[%clk 0:00:13]} 57. Kf1 {[%clk 0:00:18]}  e4 {[%clk 0:00:12]} 58. Re6 {[%clk 0:00:15]}  Kf3 {[%clk 0:00:11]} 59. Rf6+ {[%clk 0:00:14]}  Kg3 {[%clk 0:00:11]} 60. Re6 {[%clk 0:00:15]}  Kxh3 {[%clk 0:00:12]} 61. Rxe4 {[%clk 0:00:15]}  Rxa6 {[%clk 0:00:12]} 62. Kf2 {[%clk 0:00:15]}  Ra2+ {[%clk 0:00:12]} 63. Kf3 {[%clk 0:00:15]}  Ra3+ {[%clk 0:00:12]} 64. Kf2 {[%clk 0:00:15]}  Ra6 {[%clk 0:00:08]} 65. Re7 {[%clk 0:00:15]}  Rf6+ {[%clk 0:00:07]} 66. Kg1 {[%clk 0:00:14]}  h6 {[%clk 0:00:07]} 67. Re4 {[%clk 0:00:14]}  Kg3 {[%clk 0:00:07]} 68. Ra4 {[%clk 0:00:11]}  Re6 {[%clk 0:00:06]} 69. Rb4 {[%clk 0:00:11]}  Re1# {[%clk 0:00:05]} 0-1


[Site "https://www.chess.com"]

[Event "Titled Tuesday Blitz August 15 Late 2023"]
[White "Grischuk, Alexander"]
[Black "Isajevsky, Anton"]
[WhiteFideId "4126025"]
[BlackFideId "4142500"]
[WhiteElo "3046"]
[BlackElo "2598"]
[Result "1-0"]
[Round "2"]
[TimeControl "180+1"]
[Date "2023.08.15"]
[WhiteClock "0:00:31"]
[BlackClock "0:00:00"]
[Board "10"]

1. Nf3 {[%clk 0:03:00]}  d5 {[%clk 0:02:56]} 2. g3 {[%clk 0:03:00]}  Nf6 {[%clk 0:02:56]} 3. Bg2 {[%clk 0:03:00]}  e6 {[%clk 0:02:56]} 4. O-O {[%clk 0:03:00]}  Be7 {[%clk 0:02:55]} 5. c4 {[%clk 0:03:00]}  O-O {[%clk 0:02:54]} 6. d3 {[%clk 0:03:01]}  b6 {[%clk 0:02:47]} 7. cxd5 {[%clk 0:03:00]}  exd5 {[%clk 0:02:41]} 8. d4 {[%clk 0:03:01]}  Bb7 {[%clk 0:02:32]} 9. Nc3 {[%clk 0:03:00]}  Ne4 {[%clk 0:02:21]} 10. Bf4 {[%clk 0:02:53]}  Nxc3 {[%clk 0:02:09]} 11. bxc3 {[%clk 0:02:54]}  Nc6 {[%clk 0:02:09]} 12. Nd2 {[%clk 0:02:29]}  Na5 {[%clk 0:01:55]} 13. e4 {[%clk 0:02:21]}  c5 {[%clk 0:01:47]} 14. e5 {[%clk 0:02:07]}  cxd4 {[%clk 0:01:30]} 15. cxd4 {[%clk 0:02:08]}  Qd7 {[%clk 0:01:30]} 16. Re1 {[%clk 0:01:59]}  Rac8 {[%clk 0:01:25]} 17. Qh5 {[%clk 0:01:53]}  Rc6 {[%clk 0:01:20]} 18. Nf1 {[%clk 0:01:27]}  Nc4 {[%clk 0:01:14]} 19. Ne3 {[%clk 0:01:27]}  Nxe3 {[%clk 0:01:14]} 20. Bxe3 {[%clk 0:01:27]}  Rc4 {[%clk 0:00:31]} 21. Bf1 {[%clk 0:01:18]}  b5 {[%clk 0:00:24]} 22. Bd3 {[%clk 0:01:17]}  g6 {[%clk 0:00:24]} 23. Qe2 {[%clk 0:01:13]}  Rfc8 {[%clk 0:00:21]} 24. Rad1 {[%clk 0:01:01]}  a5 {[%clk 0:00:19]} 25. Rf1 {[%clk 0:00:57]}  b4 {[%clk 0:00:17]} 26. f4 {[%clk 0:00:57]}  Ba6 {[%clk 0:00:12]} 27. f5 {[%clk 0:00:56]}  Rc2 {[%clk 0:00:12]} 28. Rd2 {[%clk 0:00:42]}  Bxd3 {[%clk 0:00:11]} 29. Qxd3 {[%clk 0:00:43]}  Rxd2 {[%clk 0:00:10]} 30. Bxd2 {[%clk 0:00:44]}  Qc6 {[%clk 0:00:07]} 31. e6 {[%clk 0:00:42]}  Qc2 {[%clk 0:00:05]} 32. exf7+ {[%clk 0:00:41]}  Kg7 {[%clk 0:00:02]} 33. f6+ {[%clk 0:00:30]}  Bxf6 {[%clk 0:00:00]} 34. Qxc2 {[%clk 0:00:31]} 1-0


[Site "https://www.chess.com"]

[Event "Titled Tuesday Blitz August 15 Late 2023"]
[White "Yang, Cayden"]
[Black "Dubov, Daniil"]
[WhiteFideId "30967260"]
[BlackFideId "24126055"]
[WhiteElo "2596"]
[BlackElo "3041"]
[Result "0-1"]
[Round "2"]
[TimeControl "180+1"]
[Date "2023.08.15"]
[WhiteClock "0:00:18"]
[BlackClock "0:01:59"]
[Board "11"]

1. e4 {[%clk 0:03:00]}  c5 {[%clk 0:03:00]} 2. Nf3 {[%clk 0:03:00]}  Nc6 {[%clk 0:02:59]} 3. Bb5 {[%clk 0:02:58]}  e6 {[%clk 0:02:58]} 4. O-O {[%clk 0:02:57]}  Nge7 {[%clk 0:02:58]} 5. c3 {[%clk 0:02:55]}  a6 {[%clk 0:02:56]} 6. Ba4 {[%clk 0:02:54]}  b5 {[%clk 0:02:55]} 7. Bc2 {[%clk 0:02:54]}  c4 {[%clk 0:02:54]} 8. a4 {[%clk 0:02:50]}  Rb8 {[%clk 0:02:52]} 9. b3 {[%clk 0:02:40]}  Ng6 {[%clk 0:02:51]} 10. axb5 {[%clk 0:02:12]}  axb5 {[%clk 0:02:50]} 11. bxc4 {[%clk 0:02:13]}  bxc4 {[%clk 0:02:50]} 12. Na3 {[%clk 0:02:14]}  Nce5 {[%clk 0:02:44]} 13. Nxe5 {[%clk 0:02:04]}  Nxe5 {[%clk 0:02:44]} 14. f4 {[%clk 0:02:05]}  Bc5+ {[%clk 0:02:39]} 15. Kh1 {[%clk 0:02:04]}  Nd3 {[%clk 0:02:39]} 16. Qh5 {[%clk 0:01:28]}  d5 {[%clk 0:02:29]} 17. exd5 {[%clk 0:01:24]}  Qxd5 {[%clk 0:02:24]} 18. Ba4+ {[%clk 0:01:05]}  Ke7 {[%clk 0:02:11]} 19. Qe2 {[%clk 0:00:43]}  Bb7 {[%clk 0:02:06]} 20. Bb5 {[%clk 0:00:33]}  Nxc1 {[%clk 0:02:02]} 21. Rfxc1 {[%clk 0:00:20]}  Bxa3 {[%clk 0:02:02]} 22. Bxc4 {[%clk 0:00:21]}  Qxg2+ {[%clk 0:02:00]} 23. Qxg2 {[%clk 0:00:21]}  Bxg2+ {[%clk 0:02:01]} 24. Kxg2 {[%clk 0:00:22]}  Bxc1 {[%clk 0:02:01]} 25. Rxc1 {[%clk 0:00:22]}  Rb2 {[%clk 0:02:00]} 26. Rd1 {[%clk 0:00:18]}  Rd8 {[%clk 0:01:59]} 27. Bd3 {[%clk 0:00:18]}  Rxd3 {[%clk 0:01:59]} 0-1


[Site "https://www.chess.com"]